[Event "Early-Titled-Tuesday-Blitz-October-17-2023"]
[Site "Chess.com"]
[Date "2023.10.17"]
[Round "2"]
[White "GradualismUnleashed"]
[Black "jcibarra"]
[Result "1-0"]
[WhiteElo "2624"]
[BlackElo "2890"]
[TimeControl "180+1"]
[EndTime "8:18:20 PDT"]
[Termination "GradualismUnleashed won by resignation"]

1. e4 {[%clk 0:03:00.9]} 1... c5 {[%clk 0:02:59]} 2. Nf3 {[%clk 0:03:01.1]} 2...
Nc6 {[%clk 0:02:59.6]} 3. Nc3 {[%clk 0:03:00.9]} 3... e6 {[%clk 0:02:58.3]} 4.
d4 {[%clk 0:03:00.5]} 4... cxd4 {[%clk 0:02:58.6]} 5. Nxd4 {[%clk 0:03:01.4]}
5... Nf6 {[%clk 0:02:59]} 6. a3 {[%clk 0:03:01.3]} 6... Be7 {[%clk 0:02:57.8]}
7. Nxc6 {[%clk 0:03:01.2]} 7... bxc6 {[%clk 0:02:57.1]} 8. e5 {[%clk 0:03:01.7]}
8... Nd5 {[%clk 0:02:56.6]} 9. Ne4 {[%clk 0:03:01.8]} 9... Qc7 {[%clk
0:02:46.7]} 10. f4 {[%clk 0:03:00]} 10... f5 {[%clk 0:02:41.9]} 11. Nd6+ {[%clk
0:02:54.4]} 11... Bxd6 {[%clk 0:02:37.3]} 12. exd6 {[%clk 0:02:55.3]} 12... Qb6
{[%clk 0:02:37.8]} 13. c4 {[%clk 0:02:39.4]} 13... Nf6 {[%clk 0:02:34.8]} 14. b4
{[%clk 0:02:17.1]} 14... c5 {[%clk 0:02:33.3]} 15. Be3 {[%clk 0:02:17.1]} 15...
Ne4 {[%clk 0:02:30.2]} 16. Bd3 {[%clk 0:02:14.6]} 16... Qxd6 {[%clk 0:02:02.8]}
17. Bxe4 {[%clk 0:02:14.5]} 17... Qxd1+ {[%clk 0:02:03.3]} 18. Rxd1 {[%clk
0:02:13.4]} 18... fxe4 {[%clk 0:02:04.2]} 19. Bxc5 {[%clk 0:02:12.5]} 19... Bb7
{[%clk 0:01:55.9]} 20. Bd6 {[%clk 0:02:08.4]} 20... Rc8 {[%clk 0:01:54.3]} 21.
c5 {[%clk 0:02:05.7]} 21... Ba6 {[%clk 0:01:49.8]} 22. Kf2 {[%clk 0:02:02.4]}
22... Bd3 {[%clk 0:01:49.4]} 23. Ke3 {[%clk 0:02:01.8]} 23... Kf7 {[%clk
0:01:46.2]} 24. g4 {[%clk 0:01:59.4]} 24... h5 {[%clk 0:01:45.4]} 25. g5 {[%clk
0:01:56.6]} 25... Kg6 {[%clk 0:01:44.4]} 26. Rd2 {[%clk 0:01:46.1]} 26... h4
{[%clk 0:01:40.9]} 27. Rb2 {[%clk 0:01:43.5]} 27... Bb5 {[%clk 0:01:29.6]} 28.
a4 {[%clk 0:01:35]} 28... Bxa4 {[%clk 0:01:24.8]} 29. Ra1 {[%clk 0:01:35]} 29...
Bb5 {[%clk 0:01:22.5]} 30. Rxa7 {[%clk 0:01:34.9]} 30... Ra8 {[%clk 0:01:23]}
31. Rba2 {[%clk 0:01:27.3]} 31... Rxa7 {[%clk 0:01:17.3]} 32. Rxa7 {[%clk
0:01:28.2]} 32... Kf5 {[%clk 0:01:11.9]} 33. Ra5 {[%clk 0:01:26.4]} 33... Bc6
{[%clk 0:01:11.2]} 34. b5 {[%clk 0:01:25.5]} 34... Bd5 {[%clk 0:01:10.3]} 35. c6
{[%clk 0:01:09.9]} 35... dxc6 {[%clk 0:01:09]} 36. b6 {[%clk 0:01:10.4]} 36...
c5 {[%clk 0:01:02]} 37. Rxc5 {[%clk 0:01:09.3]} 37... Kg4 {[%clk 0:00:47.3]} 38.
Rxd5 {[%clk 0:01:03.6]} 38... exd5 {[%clk 0:00:48.2]} 39. b7 {[%clk 0:01:04.2]}
39... Kh3 {[%clk 0:00:28.6]} 40. f5 {[%clk 0:01:02.2]} 40... Kg4 {[%clk
0:00:29.1]} 41. f6 {[%clk 0:00:59.1]} 41... gxf6 {[%clk 0:00:20]} 42. gxf6
{[%clk 0:00:59.2]} 42... Kf5 {[%clk 0:00:20.6]} 43. f7 {[%clk 0:00:59.5]} 43...
d4+ {[%clk 0:00:19.6]} 44. Kxd4 {[%clk 0:00:58.3]} 44... e3 {[%clk 0:00:19.7]}
45. Kxe3 {[%clk 0:00:56.5]} 1-0

[Event "Early-Titled-Tuesday-Blitz-October-17-2023"]
[Site "Chess.com"]
[Date "2023.10.17"]
[Round "2"]
[White "SanchezKelvin"]
[Black "PeshkaCh"]
[Result "0-1"]
[WhiteElo "2568"]
[BlackElo "2818"]
[TimeControl "180+1"]
[EndTime "8:18:24 PDT"]
[Termination "PeshkaCh won by resignation"]

1. e4 {[%clk 0:03:00.9]} 1... e5 {[%clk 0:02:59.4]} 2. Nf3 {[%clk 0:02:58.8]}
2... Nc6 {[%clk 0:02:59.9]} 3. Bb5 {[%clk 0:02:57.4]} 3... a6 {[%clk 0:02:59.8]}
4. Ba4 {[%clk 0:02:57.6]} 4... Nge7 {[%clk 0:03:00.5]} 5. O-O {[%clk 0:02:55.6]}
5... Ng6 {[%clk 0:03:01.1]} 6. Nc3 {[%clk 0:02:52.7]} 6... Be7 {[%clk
0:03:00.7]} 7. Nd5 {[%clk 0:02:51.9]} 7... O-O {[%clk 0:03:00.7]} 8. d3 {[%clk
0:02:51.4]} 8... d6 {[%clk 0:03:00]} 9. h3 {[%clk 0:02:51]} 9... Be6 {[%clk
0:02:59.2]} 10. c3 {[%clk 0:02:50.1]} 10... f5 {[%clk 0:02:53.8]} 11. exf5
{[%clk 0:02:38.5]} 11... Bxf5 {[%clk 0:02:42.8]} 12. Bb3 {[%clk 0:02:30.6]}
12... Kh8 {[%clk 0:02:41.8]} 13. Ne3 {[%clk 0:02:30.3]} 13... Bd7 {[%clk
0:02:39.7]} 14. Bc2 {[%clk 0:02:25.5]} 14... Nf4 {[%clk 0:02:33.7]} 15. d4
{[%clk 0:02:22.9]} 15... exd4 {[%clk 0:02:34.2]} 16. cxd4 {[%clk 0:02:17.4]}
16... Qe8 {[%clk 0:02:31.4]} 17. Ng4 {[%clk 0:02:00.4]} 17... Qh5 {[%clk
0:02:25.5]} 18. Bxf4 {[%clk 0:01:56.4]} 18... Rxf4 {[%clk 0:02:26.1]} 19. Ngh2
{[%clk 0:01:55.9]} 19... Raf8 {[%clk 0:02:22.4]} 20. Re1 {[%clk 0:01:54.2]}
20... Bd8 {[%clk 0:02:03.9]} 21. Re3 {[%clk 0:01:44.2]} 21... Qd5 {[%clk
0:01:03.5]} 22. Bb3 {[%clk 0:01:41.3]} 22... Qf5 {[%clk 0:00:58.8]} 23. Qd2
{[%clk 0:01:26.2]} 23... Qg6 {[%clk 0:00:48.8]} 24. Kh1 {[%clk 0:01:18.5]} 24...
Nxd4 {[%clk 0:00:47.5]} 25. Bd5 {[%clk 0:00:48.6]} 25... Nxf3 {[%clk 0:00:42.4]}
26. Bxf3 {[%clk 0:00:47.3]} 26... c6 {[%clk 0:00:38.4]} 27. Rd1 {[%clk
0:00:36.3]} 27... d5 {[%clk 0:00:38]} 28. Rb3 {[%clk 0:00:36.3]} 28... b5 {[%clk
0:00:31.7]} 29. Rc1 {[%clk 0:00:35.1]} 29... Bg5 {[%clk 0:00:29.1]} 30. Qc2
{[%clk 0:00:27]} 30... Rc4 {[%clk 0:00:24.8]} 0-1

[Event "Early-Titled-Tuesday-Blitz-October-17-2023"]
[Site "Chess.com"]
[Date "2023.10.17"]
[Round "2"]
[White "Mystery2007"]
[Black "whiteglovethief"]
[Result "0-1"]
[WhiteElo "2460"]
[BlackElo "2672"]
[TimeControl "180+1"]
[EndTime "8:18:29 PDT"]
[Termination "whiteglovethief won on time"]

1. e4 {[%clk 0:03:00.9]} 1... e6 {[%clk 0:03:00.2]} 2. Qe2 {[%clk 0:02:54.9]}
2... d5 {[%clk 0:03:01.1]} 3. exd5 {[%clk 0:02:54]} 3... Nf6 {[%clk 0:03:01.7]}
4. Nc3 {[%clk 0:02:42.2]} 4... Bd6 {[%clk 0:02:55.8]} 5. d3 {[%clk 0:02:38.3]}
5... O-O {[%clk 0:02:54.6]} 6. Bg5 {[%clk 0:02:36.5]} 6... exd5 {[%clk
0:02:48.5]} 7. O-O-O {[%clk 0:02:30.2]} 7... Bb4 {[%clk 0:02:35.6]} 8. Bxf6
{[%clk 0:02:21.7]} 8... Qxf6 {[%clk 0:02:36.2]} 9. Nxd5 {[%clk 0:02:17]} 9...
Qg5+ {[%clk 0:02:36.1]} 10. Ne3 {[%clk 0:02:14.6]} 10... Nc6 {[%clk 0:02:32.9]}
11. Nf3 {[%clk 0:02:11.4]} 11... Qa5 {[%clk 0:02:32.8]} 12. a3 {[%clk
0:02:06.7]} 12... Bxa3 {[%clk 0:02:17.7]} 13. Nc4 {[%clk 0:01:56.9]} 13... Bxb2+
{[%clk 0:02:12.4]} 14. Kxb2 {[%clk 0:01:53.6]} 14... Qb4+ {[%clk 0:02:10.7]} 15.
Kc1 {[%clk 0:01:53.5]} 15... Bg4 {[%clk 0:01:59.4]} 16. Qd2 {[%clk 0:01:38.8]}
16... Qa4 {[%clk 0:01:58.8]} 17. Qc3 {[%clk 0:01:38.3]} 17... Bxf3 {[%clk
0:01:49.9]} 18. gxf3 {[%clk 0:01:37.5]} 18... Rfd8 {[%clk 0:01:26.9]} 19. d4
{[%clk 0:01:25.1]} 19... b5 {[%clk 0:01:22.9]} 20. d5 {[%clk 0:00:41.1]} 20...
Nb4 {[%clk 0:01:06]} 21. Kb1 {[%clk 0:00:10.8]} 21... bxc4 {[%clk 0:00:52.5]}
22. Bxc4 {[%clk 0:00:11.7]} 22... Rab8 {[%clk 0:00:49.1]} 23. Bb3 {[%clk
0:00:11.9]} 23... Nxd5 {[%clk 0:00:34.9]} 24. Qb2 {[%clk 0:00:04.7]} 24... Qc6
{[%clk 0:00:33.2]} 25. Rhg1 {[%clk 0:00:03.2]} 25... Nc3+ {[%clk 0:00:32.4]} 26.
Kc1 {[%clk 0:00:03]} 26... Qh6+ {[%clk 0:00:29.9]} 0-1

[Event "Early-Titled-Tuesday-Blitz-October-17-2023"]
[Site "Chess.com"]
[Date "2023.10.17"]
[Round "2"]
[White "Susal_De_Silva"]
[Black "FrenchMonster2002"]
[Result "1-0"]
[WhiteElo "2667"]
[BlackElo "2449"]
[TimeControl "180+1"]
[EndTime "8:18:30 PDT"]
[Termination "Susal_De_Silva won on time"]

1. Nf3 {[%clk 0:03:00.9]} 1... Nf6 {[%clk 0:02:56.8]} 2. c4 {[%clk 0:03:00.2]}
2... g6 {[%clk 0:02:57.1]} 3. g3 {[%clk 0:02:58.9]} 3... Bg7 {[%clk 0:02:57.6]}
4. Bg2 {[%clk 0:02:59.8]} 4... O-O {[%clk 0:02:58.3]} 5. O-O {[%clk 0:03:00.5]}
5... d6 {[%clk 0:02:59]} 6. d4 {[%clk 0:03:01.1]} 6... Nc6 {[%clk 0:02:59.7]} 7.
Nc3 {[%clk 0:03:01.3]} 7... e5 {[%clk 0:03:00.4]} 8. dxe5 {[%clk 0:03:01.5]}
8... Nxe5 {[%clk 0:03:01.3]} 9. Nxe5 {[%clk 0:02:57.6]} 9... dxe5 {[%clk
0:03:02.2]} 10. Qc2 {[%clk 0:02:56.4]} 10... c6 {[%clk 0:03:01.8]} 11. Rd1
{[%clk 0:02:56]} 11... Qc7 {[%clk 0:02:59.9]} 12. b3 {[%clk 0:02:56.2]} 12...
Bf5 {[%clk 0:02:58.6]} 13. Ne4 {[%clk 0:02:53.1]} 13... Nxe4 {[%clk 0:02:50.9]}
14. Bxe4 {[%clk 0:02:52.2]} 14... Bxe4 {[%clk 0:02:51.8]} 15. Qxe4 {[%clk
0:02:52.9]} 15... f5 {[%clk 0:02:52.4]} 16. Qc2 {[%clk 0:02:53.3]} 16... e4
{[%clk 0:02:51]} 17. Bb2 {[%clk 0:02:52.2]} 17... Rad8 {[%clk 0:02:50.8]} 18.
Bxg7 {[%clk 0:02:50.9]} 18... Qxg7 {[%clk 0:02:50.8]} 19. c5 {[%clk 0:02:37.5]}
19... Qe5 {[%clk 0:02:39.5]} 20. Qc4+ {[%clk 0:02:36.2]} 20... Kg7 {[%clk
0:02:35.3]} 21. b4 {[%clk 0:02:36.9]} 21... Rd5 {[%clk 0:02:31.2]} 22. Rab1
{[%clk 0:02:20.9]} 22... Rfd8 {[%clk 0:02:26.5]} 23. Rxd5 {[%clk 0:02:19.9]}
23... Rxd5 {[%clk 0:02:13.9]} 24. e3 {[%clk 0:02:09.8]} 24... a6 {[%clk
0:02:11.1]} 25. a4 {[%clk 0:02:08.5]} 25... h5 {[%clk 0:02:04.9]} 26. h4 {[%clk
0:02:06.7]} 26... g5 {[%clk 0:01:47.1]} 27. hxg5 {[%clk 0:02:03.7]} 27... h4
{[%clk 0:01:46.1]} 28. gxh4 {[%clk 0:02:03.2]} 28... f4 {[%clk 0:01:45]} 29.
exf4 {[%clk 0:01:54.9]} 29... Qxf4 {[%clk 0:01:28.2]} 30. Qc3+ {[%clk
0:01:49.1]} 30... Kg6 {[%clk 0:01:28.6]} 31. Qg3 {[%clk 0:01:46.8]} 31... Qf5
{[%clk 0:01:25.8]} 32. Re1 {[%clk 0:01:31.3]} 32... Kh5 {[%clk 0:00:49.3]} 33.
g6 {[%clk 0:01:01.6]} 33... Rd8 {[%clk 0:00:13.3]} 34. Rxe4 {[%clk 0:00:59.8]}
34... Rd1+ {[%clk 0:00:03.9]} 35. Kh2 {[%clk 0:01:00]} 35... Rh1+ {[%clk
0:00:02.3]} 36. Kxh1 {[%clk 0:00:59.5]} 36... Qxe4+ {[%clk 0:00:03.2]} 37. Kh2
{[%clk 0:01:00.2]} 37... Kh6 {[%clk 0:00:01.4]} 38. g7 {[%clk 0:01:00]} 1-0

[Event "Early-Titled-Tuesday-Blitz-October-17-2023"]
[Site "Chess.com"]
[Date "2023.10.17"]
[Round "2"]
[White "TimGrutter03"]
[Black "scarabee43"]
[Result "0-1"]
[WhiteElo "2551"]
[BlackElo "2784"]
[TimeControl "180+1"]
[EndTime "8:18:37 PDT"]
[Termination "scarabee43 won by resignation"]

1. e4 {[%clk 0:03:00.9]} 1... c5 {[%clk 0:02:59.1]} 2. Nc3 {[%clk 0:02:58.4]}
2... e6 {[%clk 0:02:58.5]} 3. g3 {[%clk 0:02:58.2]} 3... Nc6 {[%clk 0:02:58.6]}
4. Bg2 {[%clk 0:02:57.5]} 4... g6 {[%clk 0:02:58.2]} 5. Nge2 {[%clk 0:02:55.5]}
5... Bg7 {[%clk 0:02:58.7]} 6. d4 {[%clk 0:02:55.1]} 6... Nxd4 {[%clk
0:02:56.3]} 7. O-O {[%clk 0:02:51.5]} 7... Nxe2+ {[%clk 0:02:54.8]} 8. Qxe2
{[%clk 0:02:49.8]} 8... Ne7 {[%clk 0:02:55.2]} 9. e5 {[%clk 0:02:46.7]} 9... O-O
{[%clk 0:02:47.8]} 10. f4 {[%clk 0:02:42.7]} 10... d5 {[%clk 0:02:41.1]} 11. Nb5
{[%clk 0:02:34.2]} 11... Bd7 {[%clk 0:02:34.1]} 12. Nd6 {[%clk 0:02:25.9]} 12...
Bc6 {[%clk 0:02:34.5]} 13. c4 {[%clk 0:02:18.5]} 13... Nc8 {[%clk 0:02:26.8]}
14. Nxc8 {[%clk 0:02:06.8]} 14... Qxc8 {[%clk 0:02:22.5]} 15. b3 {[%clk
0:02:03]} 15... dxc4 {[%clk 0:02:16.1]} 16. Bxc6 {[%clk 0:01:53.7]} 16... Qxc6
{[%clk 0:02:16]} 17. Qxc4 {[%clk 0:01:54.2]} 17... b5 {[%clk 0:02:11.9]} 18. Qc2
{[%clk 0:01:50.2]} 18... Rfc8 {[%clk 0:01:55.2]} 19. Be3 {[%clk 0:01:45.9]}
19... c4 {[%clk 0:01:55.4]} 20. bxc4 {[%clk 0:01:37.8]} 20... bxc4 {[%clk
0:01:55]} 21. Rfd1 {[%clk 0:01:31.6]} 21... Bf8 {[%clk 0:01:52.6]} 22. Rab1
{[%clk 0:01:20.2]} 22... Rc7 {[%clk 0:01:39.6]} 23. Qc3 {[%clk 0:01:13.4]} 23...
Rac8 {[%clk 0:01:38.1]} 24. Rd2 {[%clk 0:01:00.6]} 24... Qa4 {[%clk 0:01:33.9]}
25. h4 {[%clk 0:00:39.8]} 25... a5 {[%clk 0:01:33.1]} 26. Qc2 {[%clk 0:00:27.3]}
26... Qa3 {[%clk 0:01:31.5]} 27. Re2 {[%clk 0:00:19.1]} 27... Bc5 {[%clk
0:01:28.7]} 28. Kf2 {[%clk 0:00:19.2]} 28... Bxe3+ {[%clk 0:01:15.6]} 29. Rxe3
{[%clk 0:00:20.1]} 29... Qc5 {[%clk 0:01:15.7]} 30. h5 {[%clk 0:00:19.7]} 30...
Rd7 {[%clk 0:01:08.7]} 31. Rd1 {[%clk 0:00:09.7]} 31... Rxd1 {[%clk 0:01:06.2]}
32. Qxd1 {[%clk 0:00:10.6]} 32... c3 {[%clk 0:01:06.5]} 33. hxg6 {[%clk
0:00:09.6]} 33... hxg6 {[%clk 0:01:05.7]} 34. Qc2 {[%clk 0:00:06.9]} 34... Qb6
{[%clk 0:01:00.2]} 35. Ke2 {[%clk 0:00:04.1]} 35... Qb5+ {[%clk 0:00:59.9]} 36.
Kf2 {[%clk 0:00:01.9]} 36... Qb2 {[%clk 0:00:53.9]} 37. Qxb2 {[%clk 0:00:01.8]}
37... cxb2 {[%clk 0:00:54.4]} 38. Rb3 {[%clk 0:00:02.5]} 38... Rc2+ {[%clk
0:00:54.7]} 39. Ke3 {[%clk 0:00:02]} 39... a4 {[%clk 0:00:55.2]} 40. Rb8+ {[%clk
0:00:02]} 40... Kg7 {[%clk 0:00:55]} 41. Kd3 {[%clk 0:00:02]} 41... Rg2 {[%clk
0:00:55.1]} 42. Ke4 {[%clk 0:00:01.8]} 42... a3 {[%clk 0:00:54.9]} 43. Kf3
{[%clk 0:00:02.1]} 43... Rg1 {[%clk 0:00:55.4]} 0-1

[Event "Early-Titled-Tuesday-Blitz-October-17-2023"]
[Site "Chess.com"]
[Date "2023.10.17"]
[Round "2"]
[White "kirillshevchenko"]
[Black "DonCiao"]
[Result "1-0"]
[WhiteElo "2925"]
[BlackElo "2103"]
[TimeControl "180+1"]
[EndTime "8:18:41 PDT"]
[Termination "kirillshevchenko won on time"]

1. c4 {[%clk 0:03:00]} 1... Nf6 {[%clk 0:02:59]} 2. Nc3 {[%clk 0:02:56]} 2... d5
{[%clk 0:02:58.9]} 3. cxd5 {[%clk 0:02:56]} 3... Nxd5 {[%clk 0:02:59.6]} 4. Qb3
{[%clk 0:02:55.8]} 4... Nb6 {[%clk 0:02:57.4]} 5. Nf3 {[%clk 0:02:54.2]} 5...
Be6 {[%clk 0:02:49.7]} 6. Qc2 {[%clk 0:02:47.2]} 6... Nc6 {[%clk 0:02:46.9]} 7.
Ng5 {[%clk 0:02:43.7]} 7... Bd7 {[%clk 0:02:42.1]} 8. e3 {[%clk 0:02:32.6]} 8...
h6 {[%clk 0:02:37.5]} 9. Nh7 {[%clk 0:02:31]} 9... e5 {[%clk 0:02:01.2]} 10.
Nxf8 {[%clk 0:02:29]} 10... Kxf8 {[%clk 0:01:59.1]} 11. Be2 {[%clk 0:02:15.1]}
11... Qg5 {[%clk 0:01:56.4]} 12. O-O {[%clk 0:02:07.7]} 12... Bf5 {[%clk
0:01:50.5]} 13. Qb3 {[%clk 0:01:47.7]} 13... Be6 {[%clk 0:01:48.8]} 14. Qb5
{[%clk 0:01:44.6]} 14... a6 {[%clk 0:01:43.2]} 15. Qc5+ {[%clk 0:01:44.7]} 15...
Kg8 {[%clk 0:01:43.1]} 16. Bf3 {[%clk 0:01:43.6]} 16... Nd7 {[%clk 0:01:22.8]}
17. Qa3 {[%clk 0:01:38]} 17... f5 {[%clk 0:01:12.6]} 18. d3 {[%clk 0:01:08]}
18... Kh7 {[%clk 0:01:08.3]} 19. Nd5 {[%clk 0:01:06.2]} 19... e4 {[%clk
0:01:02.6]} 20. dxe4 {[%clk 0:01:06.3]} 20... fxe4 {[%clk 0:01:02]} 21. Bxe4+
{[%clk 0:01:05.2]} 21... Bf5 {[%clk 0:00:51]} 22. Qd3 {[%clk 0:01:02.2]} 22...
Bxe4 {[%clk 0:00:40.4]} 23. Qxe4+ {[%clk 0:01:02.3]} 23... g6 {[%clk 0:00:40.2]}
24. Nxc7 {[%clk 0:00:59.7]} 24... Nf6 {[%clk 0:00:34.3]} 25. Qc4 {[%clk
0:00:52.2]} 25... Ne5 {[%clk 0:00:31.3]} 26. Qf4 {[%clk 0:00:49.9]} 26... Qxf4
{[%clk 0:00:22.9]} 27. exf4 {[%clk 0:00:49.8]} 27... Nd3 {[%clk 0:00:23.4]} 28.
Nxa8 {[%clk 0:00:50]} 28... Rxa8 {[%clk 0:00:21.8]} 29. Rd1 {[%clk 0:00:49.6]}
29... Re8 {[%clk 0:00:19.5]} 30. Be3 {[%clk 0:00:49.6]} 30... Nxb2 {[%clk
0:00:18.4]} 31. Rdb1 {[%clk 0:00:50.1]} 31... Nc4 {[%clk 0:00:16.1]} 32. Rxb7+
{[%clk 0:00:51]} 32... Kg8 {[%clk 0:00:14.8]} 33. Bd4 {[%clk 0:00:51.5]} 33...
Nd5 {[%clk 0:00:13.9]} 34. g3 {[%clk 0:00:51.6]} 34... Nd2 {[%clk 0:00:12.2]}
35. Kg2 {[%clk 0:00:50.7]} 35... g5 {[%clk 0:00:11.1]} 36. fxg5 {[%clk
0:00:50.7]} 36... hxg5 {[%clk 0:00:11.8]} 37. Rg7+ {[%clk 0:00:51.4]} 37... Kf8
{[%clk 0:00:11.2]} 38. Rxg5 {[%clk 0:00:52.3]} 38... Nb4 {[%clk 0:00:04.6]} 39.
Bc5+ {[%clk 0:00:52.3]} 1-0

[Event "Early-Titled-Tuesday-Blitz-October-17-2023"]
[Site "Chess.com"]
[Date "2023.10.17"]
[Round "2"]
[White "Nekoo04"]
[Black "Aslanov_Umid"]
[Result "0-1"]
[WhiteElo "2266"]
[BlackElo "2504"]
[TimeControl "180+1"]
[EndTime "8:18:44 PDT"]
[Termination "Aslanov_Umid won by resignation"]

1. d4 {[%clk 0:02:59.5]} 1... d5 {[%clk 0:03:00.3]} 2. c4 {[%clk 0:02:59.1]}
2... e6 {[%clk 0:03:00.9]} 3. Nf3 {[%clk 0:02:59.5]} 3... Nf6 {[%clk 0:03:00.4]}
4. g3 {[%clk 0:03:00.1]} 4... Bb4+ {[%clk 0:03:01]} 5. Bd2 {[%clk 0:03:00]} 5...
Be7 {[%clk 0:03:01.1]} 6. Bg2 {[%clk 0:03:00.5]} 6... O-O {[%clk 0:03:01.8]} 7.
O-O {[%clk 0:03:01]} 7... c6 {[%clk 0:02:58.9]} 8. Qc2 {[%clk 0:03:01]} 8... b6
{[%clk 0:02:57.7]} 9. Bf4 {[%clk 0:02:59.4]} 9... Bb7 {[%clk 0:02:58]} 10. Nbd2
{[%clk 0:02:51.9]} 10... Nbd7 {[%clk 0:02:58.5]} 11. e4 {[%clk 0:02:50.6]} 11...
Rc8 {[%clk 0:02:58]} 12. Rfd1 {[%clk 0:02:47.3]} 12... c5 {[%clk 0:02:56.2]} 13.
exd5 {[%clk 0:02:29.4]} 13... exd5 {[%clk 0:02:55.1]} 14. Qf5 {[%clk 0:02:18.8]}
14... g6 {[%clk 0:02:51.3]} 15. Qh3 {[%clk 0:02:18.5]} 15... dxc4 {[%clk
0:02:44.4]} 16. Nxc4 {[%clk 0:02:14.6]} 16... cxd4 {[%clk 0:02:44.7]} 17. Nd6
{[%clk 0:01:42]} 17... Bxf3 {[%clk 0:02:06.4]} 18. Bxf3 {[%clk 0:01:23]} 18...
Rc2 {[%clk 0:02:03.5]} 19. Rxd4 {[%clk 0:01:11.3]} 19... Bxd6 {[%clk 0:02:03.7]}
20. Rxd6 {[%clk 0:01:06.4]} 20... Qe7 {[%clk 0:01:58.7]} 21. Rad1 {[%clk
0:00:53.6]} 21... Ne5 {[%clk 0:01:55.7]} 22. Bg2 {[%clk 0:00:47.5]} 22... Nc4
{[%clk 0:01:30.6]} 23. R6d4 {[%clk 0:00:15.9]} 23... Qe2 {[%clk 0:01:26.3]} 24.
Rf1 {[%clk 0:00:14.8]} 24... Nxb2 {[%clk 0:01:17.3]} 25. Qh4 {[%clk 0:00:09.6]}
25... Nh5 {[%clk 0:00:58.6]} 26. Bh6 {[%clk 0:00:06]} 26... Re8 {[%clk
0:00:56.8]} 27. Rd8 {[%clk 0:00:05.7]} 27... Rc8 {[%clk 0:00:55]} 28. Bf3 {[%clk
0:00:04.7]} 28... Qxf3 {[%clk 0:00:50.7]} 29. Qd4 {[%clk 0:00:03.9]} 29... Qf6
{[%clk 0:00:41.2]} 30. Rxe8+ {[%clk 0:00:03.1]} 30... Rxe8 {[%clk 0:00:40.9]}
31. Qd2 {[%clk 0:00:03.6]} 31... Nc4 {[%clk 0:00:40.2]} 32. Qc2 {[%clk
0:00:03.2]} 32... Ne5 {[%clk 0:00:40.4]} 33. f4 {[%clk 0:00:02.7]} 33... Ng4
{[%clk 0:00:39.3]} 34. Bg5 {[%clk 0:00:03.2]} 34... Qd4+ {[%clk 0:00:39.2]} 35.
Kh1 {[%clk 0:00:02.7]} 35... Ne3 {[%clk 0:00:35.5]} 0-1

[Event "Early-Titled-Tuesday-Blitz-October-17-2023"]
[Site "Chess.com"]
[Date "2023.10.17"]
[Round "2"]
[White "zsoltkorpics"]
[Black "Khromkin"]
[Result "1-0"]
[WhiteElo "2341"]
[BlackElo "2514"]
[TimeControl "180+1"]
[EndTime "8:18:47 PDT"]
[Termination "zsoltkorpics won by resignation"]

1. e4 {[%clk 0:03:00.9]} 1... c5 {[%clk 0:02:56]} 2. Nf3 {[%clk 0:02:58.8]} 2...
Nc6 {[%clk 0:02:56.6]} 3. d4 {[%clk 0:02:59]} 3... cxd4 {[%clk 0:02:56.8]} 4.
Nxd4 {[%clk 0:02:59.9]} 4... g6 {[%clk 0:02:57.2]} 5. Nc3 {[%clk 0:02:59.9]}
5... Bg7 {[%clk 0:02:57.7]} 6. Be3 {[%clk 0:03:00.5]} 6... Nf6 {[%clk
0:02:58.3]} 7. Bc4 {[%clk 0:03:00.2]} 7... O-O {[%clk 0:02:58.6]} 8. Bb3 {[%clk
0:03:00.6]} 8... a5 {[%clk 0:02:59.2]} 9. O-O {[%clk 0:03:00.2]} 9... a4 {[%clk
0:02:58.5]} 10. Nxa4 {[%clk 0:03:00.3]} 10... Nxe4 {[%clk 0:02:59.1]} 11. Nb5
{[%clk 0:03:00.3]} 11... d5 {[%clk 0:02:59.7]} 12. c3 {[%clk 0:02:35.8]} 12...
e6 {[%clk 0:02:51.2]} 13. Nc5 {[%clk 0:02:26.6]} 13... Ra5 {[%clk 0:02:32.8]}
14. a4 {[%clk 0:02:23.2]} 14... Nd6 {[%clk 0:02:21.6]} 15. Qe2 {[%clk
0:01:51.6]} 15... Ne5 {[%clk 0:02:13]} 16. Bd4 {[%clk 0:01:32.7]} 16... Nec4
{[%clk 0:02:10.5]} 17. Bxg7 {[%clk 0:01:32.3]} 17... Kxg7 {[%clk 0:02:10.2]} 18.
Bxc4 {[%clk 0:01:09.1]} 18... Nxc4 {[%clk 0:02:05.5]} 19. b4 {[%clk 0:01:08.7]}
19... Ra8 {[%clk 0:02:03.4]} 20. a5 {[%clk 0:01:03.1]} 20... Qe7 {[%clk
0:01:51.5]} 21. Rad1 {[%clk 0:01:00.1]} 21... Rd8 {[%clk 0:01:39.4]} 22. f4
{[%clk 0:00:45.1]} 22... Bd7 {[%clk 0:01:33.3]} 23. Nd4 {[%clk 0:00:42.1]} 23...
e5 {[%clk 0:00:41.1]} 24. fxe5 {[%clk 0:00:33.8]} 24... Qxe5 {[%clk 0:00:40.1]}
25. Qxe5+ {[%clk 0:00:30.3]} 25... Nxe5 {[%clk 0:00:40.7]} 26. Rde1 {[%clk
0:00:27.3]} 26... Nc6 {[%clk 0:00:30.6]} 27. Nxc6 {[%clk 0:00:18.5]} 27... Bxc6
{[%clk 0:00:28.9]} 28. Re7 {[%clk 0:00:19.1]} 28... Be8 {[%clk 0:00:22.1]} 29.
Ne6+ {[%clk 0:00:19.2]} 29... Kg8 {[%clk 0:00:20.7]} 30. Nxd8 {[%clk 0:00:20.1]}
30... Rxd8 {[%clk 0:00:20.9]} 31. Rxb7 {[%clk 0:00:21]} 31... d4 {[%clk
0:00:21.5]} 32. cxd4 {[%clk 0:00:20.9]} 32... Rxd4 {[%clk 0:00:21.6]} 33. Rb8
{[%clk 0:00:21]} 33... Kf8 {[%clk 0:00:18.8]} 34. Re1 {[%clk 0:00:21]} 34... Kg7
{[%clk 0:00:19.5]} 35. Rbxe8 {[%clk 0:00:20.3]} 35... Rxb4 {[%clk 0:00:19.2]}
36. Ra1 {[%clk 0:00:18.9]} 36... Rb7 {[%clk 0:00:18.2]} 37. a6 {[%clk
0:00:19.1]} 37... Ra7 {[%clk 0:00:19.1]} 38. Rb8 {[%clk 0:00:19]} 1-0